[Event "*** MasterClass Titled Tuesday Blitz"]
[Site "Chess.com"]
[Date "2017.09.05"]
[Round "4"]
[White "grzechu96"]
[Black "Drags95"]
[Result "0-1"]
[WhiteElo "2430"]
[BlackElo "2553"]
[TimeControl "180+2"]
[EndTime "13:55:12 PDT"]
[Termination "Drags95 won by resignation"]

1. e4 {[%clk 0:03:01.9]} 1... c5 {[%clk 0:02:58.5]} 2. Nf3 {[%clk 0:03:02.9]}
2... d6 {[%clk 0:03:00]} 3. d4 {[%clk 0:03:04.1]} 3... cxd4 {[%clk 0:03:01.9]}
4. Nxd4 {[%clk 0:03:05.8]} 4... Nf6 {[%clk 0:03:03.8]} 5. Nc3 {[%clk 0:03:07.3]}
5... g6 {[%clk 0:03:05.5]} 6. Be3 {[%clk 0:03:04.6]} 6... Bg7 {[%clk 0:03:06.9]}
7. f3 {[%clk 0:03:06.3]} 7... O-O {[%clk 0:03:08.4]} 8. Qd2 {[%clk 0:03:08]}
8... Nc6 {[%clk 0:03:09.8]} 9. O-O-O {[%clk 0:03:09.7]} 9... d5 {[%clk
0:03:11.3]} 10. Qe1 {[%clk 0:03:11.4]} 10... e5 {[%clk 0:03:05.7]} 11. Nxc6
{[%clk 0:03:12.5]} 11... bxc6 {[%clk 0:03:07.7]} 12. exd5 {[%clk 0:03:13.6]}
12... Nxd5 {[%clk 0:03:09.5]} 13. Bc4 {[%clk 0:03:14.7]} 13... Be6 {[%clk
0:02:57.4]} 14. Kb1 {[%clk 0:03:15.6]} 14... Rb8 {[%clk 0:02:50.8]} 15. Bb3
{[%clk 0:03:16.6]} 15... a5 {[%clk 0:02:49.3]} 16. Bc5 {[%clk 0:02:58.2]} 16...
Re8 {[%clk 0:02:47.7]} 17. g4 {[%clk 0:02:49.8]} 17... Qc7 {[%clk 0:02:46]} 18.
Ne4 {[%clk 0:02:49.4]} 18... Red8 {[%clk 0:02:19.8]} 19. h4 {[%clk 0:02:35.7]}
19... h6 {[%clk 0:02:03.1]} 20. g5 {[%clk 0:02:36.8]} 20... h5 {[%clk
0:02:03.6]} 21. Rh2 {[%clk 0:02:07.4]} 21... Bf5 {[%clk 0:01:50.5]} 22. Rhd2
{[%clk 0:02:03.2]} 22... a4 {[%clk 0:01:12.5]} 23. Bxd5 {[%clk 0:01:11.8]} 23...
cxd5 {[%clk 0:01:14.4]} 24. Rxd5 {[%clk 0:01:12.9]} 24... Rxd5 {[%clk
0:01:15.2]} 25. Rxd5 {[%clk 0:01:14.8]} 25... Qb7 {[%clk 0:01:15.8]} 26. Qb4
{[%clk 0:01:16.3]} 26... Qxb4 {[%clk 0:01:05.6]} 27. Bxb4 {[%clk 0:01:18.2]}
27... Bxe4 {[%clk 0:01:05.3]} 0-1

[Event "*** MasterClass Titled Tuesday Blitz"]
[Site "Chess.com"]
[Date "2017.09.05"]
[Round "4"]
[White "AndrewMcStone"]
[Black "gammagramma"]
[Result "1/2-1/2"]
[WhiteElo "2066"]
[BlackElo "2330"]
[TimeControl "180+2"]
[EndTime "13:55:55 PDT"]
[Termination "Game drawn by repetition"]

1. d4 {[%clk 0:03:01.5]} 1... d5 {[%clk 0:02:59.1]} 2. c4 {[%clk 0:03:01.8]}
2... e6 {[%clk 0:02:59.2]} 3. Nc3 {[%clk 0:03:03]} 3... Nf6 {[%clk 0:02:57.9]}
4. cxd5 {[%clk 0:03:04.3]} 4... exd5 {[%clk 0:02:58.7]} 5. Bg5 {[%clk
0:03:03.9]} 5... c6 {[%clk 0:02:58.6]} 6. Qc2 {[%clk 0:03:02.3]} 6... h6 {[%clk
0:02:57.7]} 7. Bh4 {[%clk 0:02:29.4]} 7... g6 {[%clk 0:02:58.1]} 8. e3 {[%clk
0:02:23.8]} 8... Bf5 {[%clk 0:02:59.2]} 9. Bd3 {[%clk 0:02:16.4]} 9... Bxd3
{[%clk 0:02:59.8]} 10. Qxd3 {[%clk 0:02:18.3]} 10... Bg7 {[%clk 0:02:59.8]} 11.
Nf3 {[%clk 0:02:14.1]} 11... O-O {[%clk 0:03:00.1]} 12. O-O {[%clk 0:02:13.4]}
12... Nbd7 {[%clk 0:02:59.5]} 13. Ne5 {[%clk 0:02:10.2]} 13... Qe8 {[%clk
0:02:57.5]} 14. f4 {[%clk 0:02:06.7]} 14... Qe6 {[%clk 0:02:45.4]} 15. Rae1
{[%clk 0:01:42.5]} 15... Ne8 {[%clk 0:02:41.8]} 16. Bg3 {[%clk 0:01:10.9]} 16...
f5 {[%clk 0:02:33.4]} 17. Rb1 {[%clk 0:01:01.7]} 17... a5 {[%clk 0:02:33.3]} 18.
b3 {[%clk 0:00:55.3]} 18... Nd6 {[%clk 0:02:34.1]} 19. a3 {[%clk 0:00:47.5]}
19... Kh7 {[%clk 0:02:31.6]} 20. Kh1 {[%clk 0:00:41.6]} 20... Nf6 {[%clk
0:02:23]} 21. Na4 {[%clk 0:00:26.7]} 21... Nfe4 {[%clk 0:02:06.5]} 22. Be1
{[%clk 0:00:26.7]} 22... g5 {[%clk 0:02:00]} 23. g3 {[%clk 0:00:11.3]} 23... g4
{[%clk 0:01:57.3]} 24. Rc1 {[%clk 0:00:10.8]} 24... Bf6 {[%clk 0:01:57.2]} 25.
Nc5 {[%clk 0:00:11.3]} 25... Qe7 {[%clk 0:01:57.1]} 26. Nxe4 {[%clk 0:00:08.6]}
26... Nxe4 {[%clk 0:01:57]} 27. b4 {[%clk 0:00:08.8]} 27... axb4 {[%clk
0:01:52.4]} 28. Bxb4 {[%clk 0:00:10.7]} 28... Nd6 {[%clk 0:01:51.9]} 29. Bxd6
{[%clk 0:00:07.8]} 29... Qxd6 {[%clk 0:01:52.4]} 30. Qxf5+ {[%clk 0:00:09.2]}
30... Kg8 {[%clk 0:01:53]} 31. Qg6+ {[%clk 0:00:09.8]} 31... Kh8 {[%clk
0:01:53.2]} 32. Qxh6+ {[%clk 0:00:10.3]} 32... Kg8 {[%clk 0:01:54.7]} 33. Qg6+
{[%clk 0:00:11.6]} 33... Kh8 {[%clk 0:01:56]} 34. Qh6+ {[%clk 0:00:08.7]} 34...
Kg8 {[%clk 0:01:56.9]} 35. Qg6+ {[%clk 0:00:09.7]} 35... Kh8 {[%clk 0:01:58.4]}
36. Qh6+ {[%clk 0:00:10.4]} 1/2-1/2

[Event "*** MasterClass Titled Tuesday Blitz"]
[Site "Chess.com"]
[Date "2017.09.05"]
[Round "4"]
[White "SavelijTartakover"]
[Black "Fianchettoed-Tower"]
[Result "1-0"]
[WhiteElo "2549"]
[BlackElo "2360"]
[TimeControl "180+2"]
[EndTime "13:56:02 PDT"]
[Termination "SavelijTartakover won by resignation"]

1. d4 {[%clk 0:03:01.9]} 1... d5 {[%clk 0:02:57.4]} 2. c4 {[%clk 0:03:01.3]}
2... c6 {[%clk 0:01:21.9]} 3. Nf3 {[%clk 0:02:59.9]} 3... Nf6 {[%clk 0:01:22.5]}
4. Nc3 {[%clk 0:03:00]} 4... e6 {[%clk 0:01:23.5]} 5. cxd5 {[%clk 0:03:00]} 5...
exd5 {[%clk 0:01:23.6]} 6. Qc2 {[%clk 0:03:00.5]} 6... Na6 {[%clk 0:01:04.5]} 7.
Bg5 {[%clk 0:02:57.5]} 7... Be7 {[%clk 0:01:02.6]} 8. e3 {[%clk 0:02:54.7]} 8...
Nc7 {[%clk 0:01:03.4]} 9. Bd3 {[%clk 0:02:54]} 9... Ne6 {[%clk 0:00:50.1]} 10.
Bxf6 {[%clk 0:02:48.5]} 10... Bxf6 {[%clk 0:00:50.6]} 11. O-O {[%clk 0:02:49.8]}
11... h6 {[%clk 0:00:46.8]} 12. b4 {[%clk 0:02:49.2]} 12... a6 {[%clk
0:00:45.5]} 13. a4 {[%clk 0:02:49.2]} 13... O-O {[%clk 0:00:46.3]} 14. Rfc1
{[%clk 0:02:48.2]} 14... Nc7 {[%clk 0:00:39]} 15. b5 {[%clk 0:02:45.4]} 15...
axb5 {[%clk 0:00:39.3]} 16. axb5 {[%clk 0:02:46.4]} 16... Rxa1 {[%clk
0:00:40.3]} 17. Rxa1 {[%clk 0:02:47.4]} 17... Bg4 {[%clk 0:00:40.9]} 18. bxc6
{[%clk 0:02:41.3]} 18... Bxf3 {[%clk 0:00:37]} 19. gxf3 {[%clk 0:02:38]} 19...
bxc6 {[%clk 0:00:37.6]} 20. Ne2 {[%clk 0:02:36.5]} 20... Qd7 {[%clk 0:00:34.5]}
21. Rc1 {[%clk 0:02:36.5]} 21... Qh3 {[%clk 0:00:32.6]} 22. Ng3 {[%clk
0:02:31.7]} 22... Ne6 {[%clk 0:00:33.4]} 23. Bf5 {[%clk 0:02:32.1]} 23... Qh4
{[%clk 0:00:27.1]} 24. Bxe6 {[%clk 0:02:32.7]} 24... fxe6 {[%clk 0:00:26.4]} 25.
Qxc6 {[%clk 0:02:34.1]} 25... Qh3 {[%clk 0:00:26]} 26. Qd7 {[%clk 0:02:27.1]}
26... Rb8 {[%clk 0:00:20.8]} 27. Rc8+ {[%clk 0:02:24.3]} 27... Rxc8 {[%clk
0:00:21.5]} 28. Qxc8+ {[%clk 0:02:25.1]} 28... Kh7 {[%clk 0:00:22.9]} 29. Qe8
{[%clk 0:02:25.4]} 29... Bg5 {[%clk 0:00:07.5]} 30. Qf7 {[%clk 0:02:21.7]} 30...
Bf6 {[%clk 0:00:08.1]} 31. f4 {[%clk 0:02:17]} 31... Kh8 {[%clk 0:00:08.5]} 32.
f5 {[%clk 0:02:04.7]} 32... exf5 {[%clk 0:00:08.9]} 33. Qxd5 {[%clk 0:02:05.5]}
33... g6 {[%clk 0:00:07.8]} 34. Qf7 {[%clk 0:02:03.6]} 34... Bg5 {[%clk
0:00:02.8]} 35. Qxg6 {[%clk 0:02:03.1]} 35... f4 {[%clk 0:00:04.1]} 36. exf4
{[%clk 0:02:02.8]} 36... Bxf4 {[%clk 0:00:02.6]} 37. Qf6+ {[%clk 0:02:03]} 37...
Kh7 {[%clk 0:00:04.5]} 38. Qxf4 {[%clk 0:02:03.9]} 38... Qd7 {[%clk 0:00:05.3]}
39. Qf5+ {[%clk 0:02:03.5]} 1-0

[Event "*** MasterClass Titled Tuesday Blitz"]
[Site "Chess.com"]
[Date "2017.09.05"]
[Round "4"]
[White "Vamostodorecto"]
[Black "dogeandpika4life"]
[Result "1-0"]
[WhiteElo "2337"]
[BlackElo "2285"]
[TimeControl "180+2"]
[EndTime "13:56:02 PDT"]
[Termination "Vamostodorecto won by resignation"]

1. d4 {[%clk 0:03:01.9]} 1... Nf6 {[%clk 0:02:59.2]} 2. c4 {[%clk 0:03:01.6]}
2... e6 {[%clk 0:02:56.9]} 3. Nc3 {[%clk 0:03:01.9]} 3... Bb4 {[%clk 0:02:56.4]}
4. e3 {[%clk 0:03:02.9]} 4... Nc6 {[%clk 0:02:49.5]} 5. a3 {[%clk 0:03:03.4]}
5... Bxc3+ {[%clk 0:02:49.1]} 6. bxc3 {[%clk 0:03:05.3]} 6... d6 {[%clk
0:02:49.3]} 7. Bd3 {[%clk 0:03:05.7]} 7... O-O {[%clk 0:02:45.8]} 8. Ne2 {[%clk
0:03:06.7]} 8... e5 {[%clk 0:02:47.1]} 9. e4 {[%clk 0:03:06.4]} 9... b6 {[%clk
0:02:47.1]} 10. O-O {[%clk 0:03:06.5]} 10... Ba6 {[%clk 0:02:41]} 11. f4 {[%clk
0:03:07]} 11... Nd7 {[%clk 0:02:38.9]} 12. fxe5 {[%clk 0:03:05.5]} 12... dxe5
{[%clk 0:02:38.4]} 13. Ng3 {[%clk 0:02:52.9]} 13... exd4 {[%clk 0:02:31.8]} 14.
cxd4 {[%clk 0:02:54.8]} 14... Nxd4 {[%clk 0:02:32.4]} 15. Bb2 {[%clk 0:02:53.2]}
15... Ne5 {[%clk 0:02:31.7]} 16. Bb1 {[%clk 0:02:46.7]} 16... c5 {[%clk
0:02:29.4]} 17. Qh5 {[%clk 0:02:43]} 17... Ng6 {[%clk 0:02:25.5]} 18. Nf5 {[%clk
0:02:05.8]} 18... Bxc4 {[%clk 0:02:13.1]} 19. Rd1 {[%clk 0:01:49.7]} 19... Ne2+
{[%clk 0:02:06.5]} 20. Kf2 {[%clk 0:01:21.2]} 20... Qxd1 {[%clk 0:01:49]} 21.
Bd3 {[%clk 0:00:32.6]} 21... Qxd3 {[%clk 0:01:36.1]} 22. Qh6 {[%clk 0:00:33.3]}
22... Qe3+ {[%clk 0:00:35.7]} 23. Kxe3 {[%clk 0:00:24.6]} 1-0

[Event "*** MasterClass Titled Tuesday Blitz"]
[Site "Chess.com"]
[Date "2017.09.05"]
[Round "4"]
[White "pastouche06"]
[Black "Rodalquilar"]
[Result "0-1"]
[WhiteElo "2340"]
[BlackElo "2526"]
[TimeControl "180+2"]
[EndTime "13:56:08 PDT"]
[Termination "Rodalquilar won on time"]

1. d4 {[%clk 0:03:01.9]} 1... Nf6 {[%clk 0:03:00.3]} 2. Nc3 {[%clk 0:03:02.9]}
2... d5 {[%clk 0:02:58.1]} 3. e4 {[%clk 0:03:04]} 3... dxe4 {[%clk 0:02:56.6]}
4. f3 {[%clk 0:03:04.7]} 4... e3 {[%clk 0:02:29.9]} 5. Bxe3 {[%clk 0:03:04.9]}
5... g6 {[%clk 0:02:31.2]} 6. Qd2 {[%clk 0:03:05.4]} 6... Bg7 {[%clk 0:02:32]}
7. O-O-O {[%clk 0:03:06.7]} 7... Nbd7 {[%clk 0:02:22.1]} 8. g4 {[%clk
0:03:02.2]} 8... Nb6 {[%clk 0:02:21.6]} 9. Bh6 {[%clk 0:02:35.3]} 9... Bxh6
{[%clk 0:02:16.2]} 10. Qxh6 {[%clk 0:02:37.2]} 10... Nbd5 {[%clk 0:02:10.4]} 11.
Ne4 {[%clk 0:02:32.3]} 11... Nxe4 {[%clk 0:02:08.5]} 12. fxe4 {[%clk 0:02:32.3]}
12... Nf6 {[%clk 0:02:09.9]} 13. e5 {[%clk 0:02:25.3]} 13... Nxg4 {[%clk
0:02:08]} 14. Qg7 {[%clk 0:02:22.1]} 14... Rf8 {[%clk 0:02:09]} 15. Nh3 {[%clk
0:01:47.2]} 15... h6 {[%clk 0:01:31.9]} 16. Nf4 {[%clk 0:01:25.2]} 16... Bf5
{[%clk 0:01:01.7]} 17. Bd3 {[%clk 0:00:33.5]} 17... Ne3 {[%clk 0:01:02]} 18.
Nxg6 {[%clk 0:00:26.1]} 18... fxg6 {[%clk 0:01:00.2]} 19. Bxf5 {[%clk
0:00:26.3]} 19... Nxf5 {[%clk 0:01:01.4]} 20. Qxg6+ {[%clk 0:00:26.9]} 20... Kd7
{[%clk 0:01:02.9]} 21. Rhf1 {[%clk 0:00:22.2]} 21... e6 {[%clk 0:01:01.1]} 22.
d5 {[%clk 0:00:21.7]} 22... Qg5+ {[%clk 0:01:02.3]} 23. Qxg5 {[%clk 0:00:17.9]}
23... hxg5 {[%clk 0:01:04.2]} 24. c4 {[%clk 0:00:06.1]} 24... Ne3 {[%clk
0:01:03.5]} 25. Rxf8 {[%clk 0:00:07]} 25... Rxf8 {[%clk 0:01:05.3]} 26. Rg1
{[%clk 0:00:08]} 26... Rf1+ {[%clk 0:01:04.8]} 27. Rxf1 {[%clk 0:00:07.4]} 27...
Nxf1 {[%clk 0:01:06.7]} 0-1

[Event "*** MasterClass Titled Tuesday Blitz"]
[Site "Chess.com"]
[Date "2017.09.05"]
[Round "4"]
[White "Godzillator"]
[Black "hypert"]
[Result "0-1"]
[WhiteElo "2284"]
[BlackElo "2324"]
[TimeControl "180+2"]
[EndTime "13:56:17 PDT"]
[Termination "hypert won by resignation"]

1. d4 {[%clk 0:03:00.4]} 1... Nf6 {[%clk 0:02:59.6]} 2. c4 {[%clk 0:03:01.6]}
2... e6 {[%clk 0:03:01.1]} 3. Nc3 {[%clk 0:03:02.9]} 3... Bb4 {[%clk 0:03:01.2]}
4. Qc2 {[%clk 0:03:04.1]} 4... O-O {[%clk 0:02:58.9]} 5. a3 {[%clk 0:03:05.3]}
5... Bxc3+ {[%clk 0:02:58.6]} 6. Qxc3 {[%clk 0:03:06.9]} 6... d6 {[%clk
0:02:57.8]} 7. Bg5 {[%clk 0:03:07.7]} 7... Nbd7 {[%clk 0:02:59.2]} 8. e3 {[%clk
0:03:08.7]} 8... e5 {[%clk 0:03:00.6]} 9. d5 {[%clk 0:03:03.2]} 9... b6 {[%clk
0:03:00.6]} 10. Bd3 {[%clk 0:03:02.6]} 10... a5 {[%clk 0:03:01]} 11. Qc2 {[%clk
0:02:44.5]} 11... h6 {[%clk 0:02:58.9]} 12. Bh4 {[%clk 0:02:45]} 12... Re8
{[%clk 0:02:59.6]} 13. Be2 {[%clk 0:02:34.1]} 13... a4 {[%clk 0:02:58.8]} 14.
Nf3 {[%clk 0:02:34.6]} 14... Nf8 {[%clk 0:02:58.3]} 15. O-O {[%clk 0:02:34.3]}
15... g5 {[%clk 0:02:57]} 16. Bg3 {[%clk 0:02:34.8]} 16... Ng6 {[%clk
0:02:54.9]} 17. Nd2 {[%clk 0:02:35.3]} 17... Bd7 {[%clk 0:02:35.9]} 18. Rae1
{[%clk 0:02:35.3]} 18... e4 {[%clk 0:02:31]} 19. Bd1 {[%clk 0:02:20.9]} 19...
Qe7 {[%clk 0:02:20]} 20. f4 {[%clk 0:02:21.1]} 20... exf3 {[%clk 0:02:13.4]} 21.
Bxf3 {[%clk 0:02:01.2]} 21... Ne5 {[%clk 0:02:09.4]} 22. Be2 {[%clk 0:01:59.8]}
22... Ng6 {[%clk 0:01:41.6]} 23. Bd3 {[%clk 0:01:57]} 23... Ne5 {[%clk
0:01:41.5]} 24. Bf5 {[%clk 0:01:54.7]} 24... Nh5 {[%clk 0:01:31.3]} 25. Bxd7
{[%clk 0:01:52.5]} 25... Nxd7 {[%clk 0:01:28.9]} 26. Qf5 {[%clk 0:01:37.9]}
26... Ng7 {[%clk 0:01:17.2]} 27. Qc2 {[%clk 0:01:31.9]} 27... f5 {[%clk
0:01:17.7]} 28. h4 {[%clk 0:01:24.6]} 28... Nf6 {[%clk 0:01:08.9]} 29. hxg5
{[%clk 0:01:24.7]} 29... hxg5 {[%clk 0:01:09.2]} 30. Nf3 {[%clk 0:01:14.5]}
30... Ne4 {[%clk 0:01:09.7]} 31. Bh2 {[%clk 0:01:13.2]} 31... g4 {[%clk
0:01:08.4]} 32. Nd4 {[%clk 0:01:14.2]} 32... g3 {[%clk 0:01:08.9]} 33. Nxf5
{[%clk 0:00:57.4]} 33... Nxf5 {[%clk 0:01:03.3]} 34. Rxf5 {[%clk 0:00:57.3]}
34... gxh2+ {[%clk 0:01:04.6]} 35. Kxh2 {[%clk 0:00:50.8]} 35... Qh4+ {[%clk
0:01:04]} 36. Kg1 {[%clk 0:00:51.4]} 36... Qxe1+ {[%clk 0:01:03.9]} 37. Kh2
{[%clk 0:00:52.7]} 37... Qh4+ {[%clk 0:01:04]} 38. Kg1 {[%clk 0:00:54]} 38...
Rf8 {[%clk 0:01:03.9]} 0-1

[Event "*** MasterClass Titled Tuesday Blitz"]
[Site "Chess.com"]
[Date "2017.09.05"]
[Round "4"]
[White "OparinGrigoriy"]
[Black "ViIIagra"]
[Result "1/2-1/2"]
[WhiteElo "2609"]
[BlackElo "2672"]
[TimeControl "180+2"]
[EndTime "13:56:43 PDT"]
[Termination "Game drawn by agreement"]

1. e4 {[%clk 0:03:01.9]} 1... c5 {[%clk 0:03:00.8]} 2. Nf3 {[%clk 0:03:03]} 2...
Nc6 {[%clk 0:03:02.5]} 3. d4 {[%clk 0:03:04.5]} 3... cxd4 {[%clk 0:03:04.4]} 4.
Nxd4 {[%clk 0:03:06.5]} 4... g6 {[%clk 0:03:05.8]} 5. c4 {[%clk 0:03:07]} 5...
Bg7 {[%clk 0:03:06.9]} 6. Be3 {[%clk 0:03:08.1]} 6... Nf6 {[%clk 0:03:07.8]} 7.
Nc3 {[%clk 0:03:09.7]} 7... O-O {[%clk 0:03:08.6]} 8. f3 {[%clk 0:03:10.3]} 8...
d6 {[%clk 0:03:10.2]} 9. Qd2 {[%clk 0:03:11.1]} 9... Bd7 {[%clk 0:03:10.2]} 10.
Be2 {[%clk 0:03:11.5]} 10... Nxd4 {[%clk 0:03:10.5]} 11. Bxd4 {[%clk 0:03:12.5]}
11... a5 {[%clk 0:03:12.4]} 12. b3 {[%clk 0:03:12.1]} 12... Bc6 {[%clk
0:03:12.5]} 13. O-O {[%clk 0:03:13.2]} 13... Nd7 {[%clk 0:03:13.4]} 14. Be3
{[%clk 0:03:14.7]} 14... Nc5 {[%clk 0:03:14.2]} 15. Rfc1 {[%clk 0:03:12.1]}
15... Be5 {[%clk 0:03:15.1]} 16. Rab1 {[%clk 0:03:08.5]} 16... e6 {[%clk
0:03:15.9]} 17. a3 {[%clk 0:02:57.8]} 17... Qh4 {[%clk 0:03:16.6]} 18. f4 {[%clk
0:02:46.3]} 18... Bxc3 {[%clk 0:03:11.5]} 19. Qxc3 {[%clk 0:02:45.5]} 19... Nxe4
{[%clk 0:03:07]} 20. Qd4 {[%clk 0:02:43.3]} 20... e5 {[%clk 0:02:55.8]} 21. fxe5
{[%clk 0:02:41.9]} 21... dxe5 {[%clk 0:02:57.7]} 22. Qxe5 {[%clk 0:02:40.7]}
22... Rfe8 {[%clk 0:02:58.9]} 23. Qf4 {[%clk 0:02:13]} 23... Qxf4 {[%clk
0:02:15.6]} 24. Bxf4 {[%clk 0:02:14.9]} 24... Nc3 {[%clk 0:02:17.2]} 25. Rxc3
{[%clk 0:02:14.6]} 25... Rxe2 {[%clk 0:02:18.7]} 26. Rg3 {[%clk 0:02:16.2]}
26... a4 {[%clk 0:02:19.3]} 27. b4 {[%clk 0:02:12]} 27... Re4 {[%clk 0:02:19.8]}
28. Bh6 {[%clk 0:02:01.5]} 28... Rxc4 {[%clk 0:02:18.3]} 29. Rd1 {[%clk
0:02:02.8]} 29... Re8 {[%clk 0:02:14.8]} 30. Re3 {[%clk 0:01:59.1]} 30... Rxe3
{[%clk 0:02:08.3]} 31. Bxe3 {[%clk 0:02:01]} 31... f6 {[%clk 0:02:09.2]} 32. Rc1
{[%clk 0:01:49.8]} 32... Re4 {[%clk 0:01:45]} 33. Kf2 {[%clk 0:01:49.3]} 33...
Re5 {[%clk 0:01:44.7]} 34. Rc5 {[%clk 0:01:49.2]} 34... Rxc5 {[%clk 0:01:33.6]}
35. Bxc5 {[%clk 0:01:51.1]} 35... Bb5 {[%clk 0:01:34.7]} 36. Ke3 {[%clk
0:01:51.2]} 36... Kf7 {[%clk 0:01:36.2]} 37. Kd4 {[%clk 0:01:51.5]} 37... Ke6
{[%clk 0:01:37.2]} 38. h4 {[%clk 0:01:47.4]} 38... Bf1 {[%clk 0:01:34.2]} 39. g3
{[%clk 0:01:48.5]} 39... b5 {[%clk 0:01:34.9]} 40. Ba7 {[%clk 0:01:46.7]} 40...
Kf5 {[%clk 0:01:35.3]} 41. Ke3 {[%clk 0:01:45.3]} 41... Bc4 {[%clk 0:01:34.4]}
42. Bd4 {[%clk 0:01:43.2]} 42... g5 {[%clk 0:01:30.3]} 43. hxg5 {[%clk
0:01:43.8]} 43... fxg5 {[%clk 0:01:29.7]} 44. Ba7 {[%clk 0:01:38.9]} 44... Kg4
{[%clk 0:01:28.3]} 45. Bb8 {[%clk 0:01:40.2]} 45... h5 {[%clk 0:01:28.4]} 46.
Kf2 {[%clk 0:01:40.8]} 46... Bd5 {[%clk 0:01:28.1]} 47. Bc7 {[%clk 0:01:41.3]}
47... Bc6 {[%clk 0:01:28.7]} 48. Ke3 {[%clk 0:01:41.3]} 48... Be8 {[%clk
0:01:26.4]} 49. Bb8 {[%clk 0:01:40.5]} 49... Bf7 {[%clk 0:01:27.5]} 50. Bc7
{[%clk 0:01:41.3]} 50... Bc4 {[%clk 0:01:28.3]} 51. Bb8 {[%clk 0:01:39.5]} 51...
Kh3 {[%clk 0:01:29.6]} 52. Kf2 {[%clk 0:01:40.1]} 52... h4 {[%clk 0:01:30.5]}
53. gxh4 {[%clk 0:01:40.9]} 53... gxh4 {[%clk 0:01:32.4]} 54. Bc7 {[%clk
0:01:42]} 54... Kg4 {[%clk 0:01:32.9]} 55. Ke3 {[%clk 0:01:43.2]} 55... Kf5
{[%clk 0:01:27]} 56. Bb8 {[%clk 0:01:43.5]} 56... Ke6 {[%clk 0:01:28.5]} 57. Kd4
{[%clk 0:01:44.6]} 57... Bf1 {[%clk 0:01:28.7]} 58. Bc7 {[%clk 0:01:45.2]} 58...
Kf5 {[%clk 0:01:30.3]} 59. Ke3 {[%clk 0:01:45.8]} 59... h3 {[%clk 0:01:31.7]}
60. Bh2 {[%clk 0:01:45.3]} 60... Bg2 {[%clk 0:01:31.9]} 61. Kd4 {[%clk
0:01:45.5]} 61... Bc6 {[%clk 0:01:31.8]} 62. Ke3 {[%clk 0:01:46.5]} 62... Be8
{[%clk 0:01:33.3]} 63. Kd4 {[%clk 0:01:47.3]} 63... Ke6 {[%clk 0:01:34.9]} 64.
Bg3 {[%clk 0:01:47.6]} 1/2-1/2

[Event "*** MasterClass Titled Tuesday Blitz"]
[Site "Chess.com"]
[Date "2017.09.05"]
[Round "4"]
[White "Hafez_Bakr"]
[Black "Daniela_Movileanu"]
[Result "0-1"]
[WhiteElo "1861"]
[BlackElo "2013"]
[TimeControl "180+2"]
[EndTime "13:56:47 PDT"]
[Termination "Daniela_Movileanu won by resignation"]

1. c4 {[%clk 0:02:55.4]} 1... Nf6 {[%clk 0:03:00.3]} 2. g3 {[%clk 0:02:54.9]}
2... g6 {[%clk 0:03:01.3]} 3. Bg2 {[%clk 0:02:56]} 3... d5 {[%clk 0:02:58.5]} 4.
cxd5 {[%clk 0:02:55.8]} 4... Nxd5 {[%clk 0:03:00.4]} 5. Nc3 {[%clk 0:02:56.6]}
5... Nb6 {[%clk 0:02:59.9]} 6. e4 {[%clk 0:02:55.4]} 6... Nc6 {[%clk 0:02:59.4]}
7. Nge2 {[%clk 0:02:56]} 7... Bg7 {[%clk 0:02:59.9]} 8. O-O {[%clk 0:02:56.6]}
8... O-O {[%clk 0:03:00.6]} 9. d3 {[%clk 0:02:56.3]} 9... Nd4 {[%clk 0:03:00]}
10. Be3 {[%clk 0:02:54.8]} 10... e5 {[%clk 0:03:00]} 11. Qd2 {[%clk 0:02:53.4]}
11... Be6 {[%clk 0:02:59.9]} 12. Bh6 {[%clk 0:02:49.5]} 12... Qe7 {[%clk
0:02:57.3]} 13. Bxg7 {[%clk 0:02:49.3]} 13... Kxg7 {[%clk 0:02:59.2]} 14. f4
{[%clk 0:02:47.1]} 14... f6 {[%clk 0:02:56]} 15. Kh1 {[%clk 0:02:45.9]} 15...
Rad8 {[%clk 0:02:55.5]} 16. b3 {[%clk 0:02:37.6]} 16... c5 {[%clk 0:02:55.3]}
17. fxe5 {[%clk 0:02:29.1]} 17... fxe5 {[%clk 0:02:54.9]} 18. Rad1 {[%clk
0:02:25.1]} 18... Bg4 {[%clk 0:02:42.5]} 19. Rde1 {[%clk 0:02:15.8]} 19... Nxe2
{[%clk 0:02:41.8]} 20. Nxe2 {[%clk 0:02:15.4]} 20... c4 {[%clk 0:02:42.7]} 21.
Rxf8 {[%clk 0:02:10.6]} 21... Qxf8 {[%clk 0:02:41.3]} 22. bxc4 {[%clk
0:02:08.8]} 22... Qf2 {[%clk 0:02:09.3]} 23. Qc3 {[%clk 0:01:43.7]} 23... Re8
{[%clk 0:02:04]} 24. Nc1 {[%clk 0:01:35.5]} 24... Na4 {[%clk 0:01:58.7]} 25. Qb4
{[%clk 0:01:32.1]} 25... Nc5 {[%clk 0:01:44.8]} 26. Rf1 {[%clk 0:01:31.9]} 26...
Qe3 {[%clk 0:01:45.6]} 27. Re1 {[%clk 0:01:23.1]} 27... Qd4 {[%clk 0:01:40]} 28.
Nb3 {[%clk 0:01:20.1]} 28... Nxb3 {[%clk 0:01:39.7]} 29. Qxb7+ {[%clk
0:01:15.6]} 29... Kh8 {[%clk 0:01:35.8]} 30. Qxb3 {[%clk 0:01:16.1]} 30... Rf8
{[%clk 0:01:36.7]} 31. c5 {[%clk 0:01:10.6]} 31... Rf2 {[%clk 0:01:33.8]} 32. h3
{[%clk 0:01:09.4]} 32... Bf3 {[%clk 0:01:32.8]} 33. Bxf3 {[%clk 0:01:07.2]}
33... Rxf3 {[%clk 0:01:34.7]} 34. Rg1 {[%clk 0:01:00.7]} 34... Rxd3 {[%clk
0:01:32.4]} 35. Qb8+ {[%clk 0:01:01.1]} 35... Kg7 {[%clk 0:01:33.6]} 36. Qxa7+
{[%clk 0:01:01.8]} 36... Kh6 {[%clk 0:01:34.4]} 37. Qe7 {[%clk 0:01:01.1]} 37...
Qxe4+ {[%clk 0:01:32.3]} 38. Rg2 {[%clk 0:00:56.3]} 38... Rxg3 {[%clk
0:01:23.4]} 39. Qf8+ {[%clk 0:00:54.2]} 39... Kh5 {[%clk 0:01:23.9]} 40. Qf2
{[%clk 0:00:52.3]} 40... Rxh3+ {[%clk 0:01:14.4]} 41. Kg1 {[%clk 0:00:52.8]}
41... Qb1+ {[%clk 0:01:13.3]} 42. Qf1 {[%clk 0:00:47.8]} 42... Rh1+ {[%clk
0:01:13.8]} 43. Kxh1 {[%clk 0:00:45.6]} 43... Qxf1+ {[%clk 0:01:14.1]} 44. Kh2
{[%clk 0:00:47.1]} 44... Qf4+ {[%clk 0:01:11.8]} 45. Kg1 {[%clk 0:00:46.1]}
45... Qc1+ {[%clk 0:01:12.1]} 0-1